Workbook

Sheet Steuerung
B2: Lagerbestandsverwaltung
B4: Hilfsstoffe Jeans 002
B7: Kontrollieren Sie die Lagerbestände und berechnen Sie Lagerkennziffern.
B10: Erfassen Sie Zu- und Abgängge und nehmen Sie neue Hilfsstoffe in das Lager auf.
B13: Kontrollieren Sie die Lagerbewegungen.
B16: Ändern Sie Liefererdaten und nehmen Sie neue Hilfsstofflieferanten in die Liefererdatei auf.
B19: Schreiben Sie Anfragen und Bestellungen.
B23: Arbeitsaufträge

Sheet Bestand
A1: Lagerbestände Hilfsstoffe (Jeans 002)
A5: Artikel-Nr.: | B5: Artikel-Bezeichnung | C5: Lieferer-Nr.: | D5: Mengen-einheit | E5: Höchst-bestand | F5: Melde-bestand | G5: Mindest-bestand | H5: Bestand | I5: kritische Mengen | J5: Durch-schnittswert | K5: Bestands-wert
A7: 201 | B7: =Artikel!B7 -> Jeansnieten | C7: 20 | D7: =Artikel!C7 -> Dtzd. | E7: =Artikel!D7 -> 1000 | F7: =Artikel!E7 -> 300 | G7: =Artikel!F7 -> 200 | H7: =IF(Artikel!$BQ7>0,Artikel!$BQ7,IF(Artikel!$BI7>0,Artikel!$BI7,IF(Artikel!$BA7>0,Artikel!$BA7,IF(Artikel!$AS7>0,Artikel!$AS7,IF(Artikel!$AK7>0,Artikel!$AK7,IF(Artikel!$AC7>0,Artikel!$AC7,IF(Artikel!$U7>0,Artikel!$U7,IF(Artikel!$M7>0,Artikel!$M7,Artikel!$G7)))))))) -> 1000 | I7: =IF(B7=0,"",IF(H7>=E7,"HöB",IF(H7<=G7,"MiB",IF(H7<=F7,"MeB","")))) -> HöB | J7: =IF(Artikel!$BS7>0,Artikel!$BS7,IF(Artikel!$BK7>0,Artikel!$BK7,IF(Artikel!$BC7>0,Artikel!$BC7,IF(Artikel!$AU7>0,Artikel!$AU7,IF(Artikel!$AM7>0,Artikel!$AM7,IF(Artikel!$AE7>0,Artikel!$AE7,IF(Artikel!$W7>0,Artikel!$W7,IF(Artikel!$O7>0,Artikel!$O7,Artikel!$H7)))))))) -> 0.236 | K7: =H7*J7 -> 236
A8: 202 | B8: =Artikel!B8 -> Jeansknöpfe | C8: 20 | D8: =Artikel!C8 -> Dtzd. | E8: =Artikel!D8 -> 1200 | F8: =Artikel!E8 -> 300 | G8: =Artikel!F8 -> 100 | H8: =IF(Artikel!$BQ8>0,Artikel!$BQ8,IF(Artikel!$BI8>0,Artikel!$BI8,IF(Artikel!$BA8>0,Artikel!$BA8,IF(Artikel!$AS8>0,Artikel!$AS8,IF(Artikel!$AK8>0,Artikel!$AK8,IF(Artikel!$AC8>0,Artikel!$AC8,IF(Artikel!$U8>0,Artikel!$U8,IF(Artikel!$M8>0,Artikel!$M8,Artikel!$G8)))))))) -> 350 | I8: =IF(B8=0,"",IF(H8>=E8,"HöB",IF(H8<=G8,"MiB",IF(H8<=F8,"MeB","")))) ->  | J8: =IF(Artikel!$BS8>0,Artikel!$BS8,IF(Artikel!$BK8>0,Artikel!$BK8,IF(Artikel!$BC8>0,Artikel!$BC8,IF(Artikel!$AU8>0,Artikel!$AU8,IF(Artikel!$AM8>0,Artikel!$AM8,IF(Artikel!$AE8>0,Artikel!$AE8,IF(Artikel!$W8>0,Artikel!$W8,IF(Artikel!$O8>0,Artikel!$O8,Artikel!$H8)))))))) -> 0.43 | K8: =H8*J8 -> 150.5
A9: 203 | B9: =Artikel!B9 -> Gürtel Country | C9: 22 | D9: =Artikel!C9 -> Stück | E9: =Artikel!D9 -> 500 | F9: =Artikel!E9 -> 100 | G9: =Artikel!F9 -> 50 | H9: =IF(Artikel!$BQ9>0,Artikel!$BQ9,IF(Artikel!$BI9>0,Artikel!$BI9,IF(Artikel!$BA9>0,Artikel!$BA9,IF(Artikel!$AS9>0,Artikel!$AS9,IF(Artikel!$AK9>0,Artikel!$AK9,IF(Artikel!$AC9>0,Artikel!$AC9,IF(Artikel!$U9>0,Artikel!$U9,IF(Artikel!$M9>0,Artikel!$M9,Artikel!$G9)))))))) -> 250 | J9: =IF(Artikel!$BS9>0,Artikel!$BS9,IF(Artikel!$BK9>0,Artikel!$BK9,IF(Artikel!$BC9>0,Artikel!$BC9,IF(Artikel!$AU9>0,Artikel!$AU9,IF(Artikel!$AM9>0,Artikel!$AM9,IF(Artikel!$AE9>0,Artikel!$AE9,IF(Artikel!$W9>0,Artikel!$W9,IF(Artikel!$O9>0,Artikel!$O9,Artikel!$H9)))))))) -> 12.75 | K9: =H9*J9 -> 3187.5
A10: 204 | B10: =Artikel!B10 -> Gürtel City | C10: 22 | D10: =Artikel!C10 -> Stück | E10: =Artikel!D10 -> 500 | F10: =Artikel!E10 -> 100 | G10: =Artikel!F10 -> 50 | H10: =IF(Artikel!$BQ10>0,Artikel!$BQ10,IF(Artikel!$BI10>0,Artikel!$BI10,IF(Artikel!$BA10>0,Artikel!$BA10,IF(Artikel!$AS10>0,Artikel!$AS10,IF(Artikel!$AK10>0,Artikel!$AK10,IF(Artikel!$AC10>0,Artikel!$AC10,IF(Artikel!$U10>0,Artikel!$U10,IF(Artikel!$M10>0,Artikel!$M10,Artikel!$G10)))))))) -> 350 | J10: =IF(Artikel!$BS10>0,Artikel!$BS10,IF(Artikel!$BK10>0,Artikel!$BK10,IF(Artikel!$BC10>0,Artikel!$BC10,IF(Artikel!$AU10>0,Artikel!$AU10,IF(Artikel!$AM10>0,Artikel!$AM10,IF(Artikel!$AE10>0,Artikel!$AE10,IF(Artikel!$W10>0,Artikel!$W10,IF(Artikel!$O10>0,Artikel!$O10,Artikel!$H10)))))))) -> 19.10555556 | K10: 6686.944444
A11: 205 | B11: =Artikel!B11 -> Logo Leder | C11: 21 | D11: =Artikel!C11 -> Stück | E11: =Artikel!D11 -> 1000 | F11: =Artikel!E11 -> 250 | G11: =Artikel!F11 -> 100 | H11: =IF(Artikel!$BQ11>0,Artikel!$BQ11,IF(Artikel!$BI11>0,Artikel!$BI11,IF(Artikel!$BA11>0,Artikel!$BA11,IF(Artikel!$AS11>0,Artikel!$AS11,IF(Artikel!$AK11>0,Artikel!$AK11,IF(Artikel!$AC11>0,Artikel!$AC11,IF(Artikel!$U11>0,Artikel!$U11,IF(Artikel!$M11>0,Artikel!$M11,Artikel!$G11)))))))) -> 600 | J11: =IF(Artikel!$BS11>0,Artikel!$BS11,IF(Artikel!$BK11>0,Artikel!$BK11,IF(Artikel!$BC11>0,Artikel!$BC11,IF(Artikel!$AU11>0,Artikel!$AU11,IF(Artikel!$AM11>0,Artikel!$AM11,IF(Artikel!$AE11>0,Artikel!$AE11,IF(Artikel!$W11>0,Artikel!$W11,IF(Artikel!$O11>0,Artikel!$O11,Artikel!$H11)))))))) -> 1.05 | K11: 630
A12: 206 | B12: =Artikel!B12 -> Logo-Aufnäher Jeans002 | C12: 21 | D12: =Artikel!C12 -> Stück | E12: =Artikel!D12 -> 1000 | F12: =Artikel!E12 -> 300 | G12: =Artikel!F12 -> 100 | H12: =IF(Artikel!$BQ12>0,Artikel!$BQ12,IF(Artikel!$BI12>0,Artikel!$BI12,IF(Artikel!$BA12>0,Artikel!$BA12,IF(Artikel!$AS12>0,Artikel!$AS12,IF(Artikel!$AK12>0,Artikel!$AK12,IF(Artikel!$AC12>0,Artikel!$AC12,IF(Artikel!$U12>0,Artikel!$U12,IF(Artikel!$M12>0,Artikel!$M12,Artikel!$G12)))))))) -> 325 | J12: =IF(Artikel!$BS12>0,Artikel!$BS12,IF(Artikel!$BK12>0,Artikel!$BK12,IF(Artikel!$BC12>0,Artikel!$BC12,IF(Artikel!$AU12>0,Artikel!$AU12,IF(Artikel!$AM12>0,Artikel!$AM12,IF(Artikel!$AE12>0,Artikel!$AE12,IF(Artikel!$W12>0,Artikel!$W12,IF(Artikel!$O12>0,Artikel!$O12,Artikel!$H12)))))))) -> 1.25 | K12: 406.25
A13: 207 | B13: =Artikel!B13 -> Reißverschlüsse (sort.) | C13: 20 | D13: =Artikel!C13 -> Dtzd. | E13: =Artikel!D13 -> 1000 | F13: =Artikel!E13 -> 400 | G13: =Artikel!F13 -> 200 | H13: =IF(Artikel!$BQ13>0,Artikel!$BQ13,IF(Artikel!$BI13>0,Artikel!$BI13,IF(Artikel!$BA13>0,Artikel!$BA13,IF(Artikel!$AS13>0,Artikel!$AS13,IF(Artikel!$AK13>0,Artikel!$AK13,IF(Artikel!$AC13>0,Artikel!$AC13,IF(Artikel!$U13>0,Artikel!$U13,IF(Artikel!$M13>0,Artikel!$M13,Artikel!$G13)))))))) -> 430 | J13: =IF(Artikel!$BS13>0,Artikel!$BS13,IF(Artikel!$BK13>0,Artikel!$BK13,IF(Artikel!$BC13>0,Artikel!$BC13,IF(Artikel!$AU13>0,Artikel!$AU13,IF(Artikel!$AM13>0,Artikel!$AM13,IF(Artikel!$AE13>0,Artikel!$AE13,IF(Artikel!$W13>0,Artikel!$W13,IF(Artikel!$O13>0,Artikel!$O13,Artikel!$H13)))))))) -> 17.76666667 | K13: 7639.666667
A14: 208 | B14: =Artikel!B14 -> 0 | D14: =Artikel!C14 -> 0 | E14: =Artikel!D14 -> 0 | F14: =Artikel!E14 -> 0 | G14: =Artikel!F14 -> 0 | H14: =IF(Artikel!$BQ14>0,Artikel!$BQ14,IF(Artikel!$BI14>0,Artikel!$BI14,IF(Artikel!$BA14>0,Artikel!$BA14,IF(Artikel!$AS14>0,Artikel!$AS14,IF(Artikel!$AK14>0,Artikel!$AK14,IF(Artikel!$AC14>0,Artikel!$AC14,IF(Artikel!$U14>0,Artikel!$U14,IF(Artikel!$M14>0,Artikel!$M14,Artikel!$G14)))))))) -> 0 | J14: =IF(Artikel!$BS14>0,Artikel!$BS14,IF(Artikel!$BK14>0,Artikel!$BK14,IF(Artikel!$BC14>0,Artikel!$BC14,IF(Artikel!$AU14>0,Artikel!$AU14,IF(Artikel!$AM14>0,Artikel!$AM14,IF(Artikel!$AE14>0,Artikel!$AE14,IF(Artikel!$W14>0,Artikel!$W14,IF(Artikel!$O14>0,Artikel!$O14,Artikel!$H14)))))))) -> 0 | K14: 0
A15: 209 | B15: =Artikel!B15 -> 0 | D15: =Artikel!C15 -> 0 | E15: =Artikel!D15 -> 0 | F15: =Artikel!E15 -> 0 | G15: =Artikel!F15 -> 0 | H15: =IF(Artikel!$BQ15>0,Artikel!$BQ15,IF(Artikel!$BI15>0,Artikel!$BI15,IF(Artikel!$BA15>0,Artikel!$BA15,IF(Artikel!$AS15>0,Artikel!$AS15,IF(Artikel!$AK15>0,Artikel!$AK15,IF(Artikel!$AC15>0,Artikel!$AC15,IF(Artikel!$U15>0,Artikel!$U15,IF(Artikel!$M15>0,Artikel!$M15,Artikel!$G15)))))))) -> 0 | J15: =IF(Artikel!$BS15>0,Artikel!$BS15,IF(Artikel!$BK15>0,Artikel!$BK15,IF(Artikel!$BC15>0,Artikel!$BC15,IF(Artikel!$AU15>0,Artikel!$AU15,IF(Artikel!$AM15>0,Artikel!$AM15,IF(Artikel!$AE15>0,Artikel!$AE15,IF(Artikel!$W15>0,Artikel!$W15,IF(Artikel!$O15>0,Artikel!$O15,Artikel!$H15)))))))) -> 0 | K15: 0
A16: 210 | B16: =Artikel!B16 -> 0 | D16: =Artikel!C16 -> 0 | E16: =Artikel!D16 -> 0 | F16: =Artikel!E16 -> 0 | G16: =Artikel!F16 -> 0 | H16: =IF(Artikel!$BQ16>0,Artikel!$BQ16,IF(Artikel!$BI16>0,Artikel!$BI16,IF(Artikel!$BA16>0,Artikel!$BA16,IF(Artikel!$AS16>0,Artikel!$AS16,IF(Artikel!$AK16>0,Artikel!$AK16,IF(Artikel!$AC16>0,Artikel!$AC16,IF(Artikel!$U16>0,Artikel!$U16,IF(Artikel!$M16>0,Artikel!$M16,Artikel!$G16)))))))) -> 0 | J16: =IF(Artikel!$BS16>0,Artikel!$BS16,IF(Artikel!$BK16>0,Artikel!$BK16,IF(Artikel!$BC16>0,Artikel!$BC16,IF(Artikel!$AU16>0,Artikel!$AU16,IF(Artikel!$AM16>0,Artikel!$AM16,IF(Artikel!$AE16>0,Artikel!$AE16,IF(Artikel!$W16>0,Artikel!$W16,IF(Artikel!$O16>0,Artikel!$O16,Artikel!$H16)))))))) -> 0 | K16: =H16*J16 -> 0
A18: Lagerkennziffern | C18: Die Kennziffern beziehen sich jeweils auf die aktuellen Bestands- bzw Verbauchs-mengen das jeweiligen Hilfsstoffes. | I18: Kalkulationszinssatz | K18: 0.05
A20: Artikel-Nr.: | B20: Artikel-Bezeichnung | C20: durchschnittlicher Lagerbestand | E20: Verbrauch | G20: Umschlagshäufigkeit | I20: durchschnittliche Lagerdauer | K20: Lager- zinssatz
A22: 201 | B22: =Artikel!B7 -> Jeansnieten | C22: =(Artikel!G7+Bestand!H7)/2 -> 750 | E22: =Artikel!G7+IF(Artikel!J7="Zugang",Artikel!L7,0)+IF(Artikel!R7="Zugang",Artikel!T7,0)+IF(Artikel!Z7="Zugang",Artikel!AB7,0)+IF(Artikel!AH7="Zugang",Artikel!AJ7,0)+IF(Artikel!AP7="Zugang",Artikel!AR7,0)+IF(Artikel!AX7="Zugang",Artikel!AZ7,0)+IF(Artikel!BF7="Zugagn",Artikel!BH7,0)+IF(Artikel!BN7="Zugang",Artikel!BP7,0)-Bestand!H7 -> 600 | G22: =IF(AND(C22>0,E22>0),C22/E22,0) -> 1.25 | I22: =IF(G22>0,360/G22,360) -> 288 | K22: =(I22*$K$18)/360 -> 0.04
A23: 202 | B23: =Artikel!B8 -> Jeansknöpfe | C23: =(Artikel!G8+Bestand!H8)/2 -> 475 | E23: =Artikel!G8+IF(Artikel!J8="Zugang",Artikel!L8,0)+IF(Artikel!R8="Zugang",Artikel!T8,0)+IF(Artikel!Z8="Zugang",Artikel!AB8,0)+IF(Artikel!AH8="Zugang",Artikel!AJ8,0)+IF(Artikel!AP8="Zugang",Artikel!AR8,0)+IF(Artikel!AX8="Zugang",Artikel!AZ8,0)+IF(Artikel!BF8="Zugagn",Artikel!BH8,0)+IF(Artikel!BN8="Zugang",Artikel!BP8,0)-Bestand!H8 -> 250 | G23: =IF(AND(C23>0,E23>0),C23/E23,0) -> 1.9 | I23: =IF(G23>0,360/G23,360) -> 189.4736842 | K23: =(I23*$K$18)/360 -> 0.02631578947
A24: 203 | B24: =Artikel!B9 -> Gürtel Country | C24: =(Artikel!G9+Bestand!H9)/2 -> 225 | E24: =Artikel!G9+IF(Artikel!J9="Zugang",Artikel!L9,0)+IF(Artikel!R9="Zugang",Artikel!T9,0)+IF(Artikel!Z9="Zugang",Artikel!AB9,0)+IF(Artikel!AH9="Zugang",Artikel!AJ9,0)+IF(Artikel!AP9="Zugang",Artikel!AR9,0)+IF(Artikel!AX9="Zugang",Artikel!AZ9,0)+IF(Artikel!BF9="Zugagn",Artikel!BH9,0)+IF(Artikel!BN9="Zugang",Artikel!BP9,0)-Bestand!H9 -> 150 | G24: 1.5 | I24: 240 | K24: 0.03333333333
A25: 204 | B25: =Artikel!B10 -> Gürtel City | C25: =(Artikel!G10+Bestand!H10)/2 -> 225 | E25: =Artikel!G10+IF(Artikel!J10="Zugang",Artikel!L10,0)+IF(Artikel!R10="Zugang",Artikel!T10,0)+IF(Artikel!Z10="Zugang",Artikel!AB10,0)+IF(Artikel!AH10="Zugang",Artikel!AJ10,0)+IF(Artikel!AP10="Zugang",Artikel!AR10,0)+IF(Artikel!AX10="Zugang",Artikel!AZ10,0)+IF(Artikel!BF10="Zugagn",Artikel!BH10,0)+IF(Artikel!BN10="Zugang",Artikel!BP10,0)-Bestand!H10 -> 100 | G25: 2.25 | I25: 160 | K25: 0.02222222222
A26: 205 | B26: =Artikel!B11 -> Logo Leder | C26: =(Artikel!G11+Bestand!H11)/2 -> 700 | E26: =Artikel!G11+IF(Artikel!J11="Zugang",Artikel!L11,0)+IF(Artikel!R11="Zugang",Artikel!T11,0)+IF(Artikel!Z11="Zugang",Artikel!AB11,0)+IF(Artikel!AH11="Zugang",Artikel!AJ11,0)+IF(Artikel!AP11="Zugang",Artikel!AR11,0)+IF(Artikel!AX11="Zugang",Artikel!AZ11,0)+IF(Artikel!BF11="Zugagn",Artikel!BH11,0)+IF(Artikel!BN11="Zugang",Artikel!BP11,0)-Bestand!H11 -> 200 | G26: 3.5 | I26: 102.8571429 | K26: 0.01428571429
A27: 206 | B27: =Artikel!B12 -> Logo-Aufnäher Jeans002 | C27: =(Artikel!G12+Bestand!H12)/2 -> 337.5 | E27: =Artikel!G12+IF(Artikel!J12="Zugang",Artikel!L12,0)+IF(Artikel!R12="Zugang",Artikel!T12,0)+IF(Artikel!Z12="Zugang",Artikel!AB12,0)+IF(Artikel!AH12="Zugang",Artikel!AJ12,0)+IF(Artikel!AP12="Zugang",Artikel!AR12,0)+IF(Artikel!AX12="Zugang",Artikel!AZ12,0)+IF(Artikel!BF12="Zugagn",Artikel!BH12,0)+IF(Artikel!BN12="Zugang",Artikel!BP12,0)-Bestand!H12 -> 25 | G27: 13.5 | I27: 26.66666667 | K27: 0.003703703704
A28: 207 | B28: =Artikel!B13 -> Reißverschlüsse (sort.) | C28: =(Artikel!G13+Bestand!H13)/2 -> 390 | E28: =Artikel!G13+IF(Artikel!J13="Zugang",Artikel!L13,0)+IF(Artikel!R13="Zugang",Artikel!T13,0)+IF(Artikel!Z13="Zugang",Artikel!AB13,0)+IF(Artikel!AH13="Zugang",Artikel!AJ13,0)+IF(Artikel!AP13="Zugang",Artikel!AR13,0)+IF(Artikel!AX13="Zugang",Artikel!AZ13,0)+IF(Artikel!BF13="Zugagn",Artikel!BH13,0)+IF(Artikel!BN13="Zugang",Artikel!BP13,0)-Bestand!H13 -> 320 | G28: 1.21875 | I28: 295.3846154 | K28: 0.04102564103
A29: 208 | B29: =Artikel!B14 -> 0 | C29: =(Artikel!G14+Bestand!H14)/2 -> 0 | E29: =Artikel!G14+IF(Artikel!J14="Zugang",Artikel!L14,0)+IF(Artikel!R14="Zugang",Artikel!T14,0)+IF(Artikel!Z14="Zugang",Artikel!AB14,0)+IF(Artikel!AH14="Zugang",Artikel!AJ14,0)+IF(Artikel!AP14="Zugang",Artikel!AR14,0)+IF(Artikel!AX14="Zugang",Artikel!AZ14,0)+IF(Artikel!BF14="Zugagn",Artikel!BH14,0)+IF(Artikel!BN14="Zugang",Artikel!BP14,0)-Bestand!H14 -> 0 | G29: 0 | I29: 360 | K29: 0.05
A30: 209 | B30: =Artikel!B15 -> 0 | C30: =(Artikel!G15+Bestand!H15)/2 -> 0 | E30: =Artikel!G15+IF(Artikel!J15="Zugang",Artikel!L15,0)+IF(Artikel!R15="Zugang",Artikel!T15,0)+IF(Artikel!Z15="Zugang",Artikel!AB15,0)+IF(Artikel!AH15="Zugang",Artikel!AJ15,0)+IF(Artikel!AP15="Zugang",Artikel!AR15,0)+IF(Artikel!AX15="Zugang",Artikel!AZ15,0)+IF(Artikel!BF15="Zugagn",Artikel!BH15,0)+IF(Artikel!BN15="Zugang",Artikel!BP15,0)-Bestand!H15 -> 0 | G30: 0 | I30: 360 | K30: 0.05
A31: 210 | B31: =Artikel!B16 -> 0 | C31: =(Artikel!G16+Bestand!H16)/2 -> 0 | E31: =Artikel!G16+IF(Artikel!J16="Zugang",Artikel!L16,0)+IF(Artikel!R16="Zugang",Artikel!T16,0)+IF(Artikel!Z16="Zugang",Artikel!AB16,0)+IF(Artikel!AH16="Zugang",Artikel!AJ16,0)+IF(Artikel!AP16="Zugang",Artikel!AR16,0)+IF(Artikel!AX16="Zugang",Artikel!AZ16,0)+IF(Artikel!BF16="Zugagn",Artikel!BH16,0)+IF(Artikel!BN16="Zugang",Artikel!BP16,0)-Bestand!H16 -> 0 | G31: 0 | I31: 360 | K31: 0.05

Sheet Artikel
A1: Lagerbewegung Hilfsstoffe Jeans 002
A5: Artikel-Nr.: | B5: Artikel-Bezeichnung | C5: Mengen-einheit | D5: Höchst-bestand | E5: Melde-bestand | F5: Mindest-bestand | G5: Anfangs-bestand | H5: Stückpreis | I5: Datum 1 | J5: Zugang/ Abgang | K5: Stück-preis | L5: Menge | M5: Bestand | N5: kritische Mengen | O5: Durch-schnittswert | P5: Bestands-wert | Q5: Datum 2 | R5: Zugang/ Abgang | S5: Stück-preis | T5: Menge | U5: Bestand | V5: kritische Mengen | W5: Durch-schnittswert | X5: Bestands-wert | Y5: Datum 3 | Z5: Zugang/ Abgang | AA5: Stück-preis | AB5: Menge | AC5: Bestand | AD5: kritische Mengen | AE5: Durch-schnittswert | AF5: Bestands-wert | AG5: Datum 4 | AH5: Zugang/ Abgang | AI5: Stück-preis | AJ5: Menge | AK5: Bestand | AL5: kritische Mengen | AM5: Durch-schnittswert | AN5: Bestands-wert | AO5: Datum 5 | AP5: Zugang/ Abgang | AQ5: Stück-preis | AR5: Menge | AS5: Bestand | AT5: kritische Mengen | AU5: Durch-schnittswert | AV5: Bestands-wert | AW5: Datum 6 | AX5: Zugang/ Abgang | AY5: Stück-preis | AZ5: Menge | BA5: Bestand | BB5: kritische Mengen | BC5: Durch-schnittswert | BD5: Bestands-wert | BE5: Datum 7 | BF5: Zugang/ Abgang | BG5: Stück-preis | BH5: Menge | BI5: Bestand | BJ5: kritische Mengen | BK5: Durch-schnittswert | BL5: Bestands-wert | BM5: Datum 8 | BN5: Zugang/ Abgang | BO5: Stück-preis | BP5: Menge | BQ5: Bestand | BR5: kritische Mengen | BS5: Durch-schnittswert | BT5: Bestands-wert
A7: 201 | B7: Jeansnieten | C7: Dtzd. | D7: 1000 | E7: 300 | F7: 200 | G7: 500 | H7: 0.24 | I7: 2006-01-12 | J7: Zugang | K7: 0.22 | L7: 500 | M7: =IF(J7="",0,IF(J7="Zugang",G7+L7,G7-L7)) -> 1000 | N7: =IF(J7="","",IF(M7>=$D7,"HöB",IF(M7<=$F7,"MiB",IF(M7<=$E7,"MeB","")))) -> HöB | O7: =IF(J7="",0,IF(J7="Zugang",((H7*G7)+(K7*L7))/(G7+L7),G7)) -> 0.23 | P7: =IF(J7="","",M7*O7) -> 230 | Q7: 2006-02-23 | R7: Abgang | T7: 600 | U7: =IF(R7="",0,IF(R7="Zugang",M7+T7,M7-T7)) -> 400 | V7: =IF(R7="","",IF(U7>=$D7,"HöB",IF(U7<=$F7,"MiB",IF(U7<=$E7,"MeB","")))) ->  | W7: =IF(R7="",0,IF(R7="Zugang",((M7*O7)+(S7*T7))/(M7+T7),O7)) -> 0.23 | X7: =IF(R7="","",U7*W7) -> 92 | Y7: 2006-04-16 | Z7: Zugang | AA7: 0.24 | AB7: 600 | AC7: =IF(Z7="",0,IF(Z7="Zugang",U7+AB7,U7-AB7)) -> 1000 | AD7: =IF(Z7="","",IF(AC7>=$D7,"HöB",IF(AC7<=$F7,"MiB",IF(AC7<=$E7,"MeB","")))) -> HöB | AE7: =IF(Z7="",0,IF(Z7="Zugang",((U7*W7)+(AA7*AB7))/(U7+AB7),W7)) -> 0.236 | AF7: =IF(Z7="","",AC7*AE7) -> 236 | AK7: =IF(AH7="",0,IF(AH7="Zugang",AC7+AJ7,AC7-AJ7)) -> 0 | AL7: =IF(AH7="","",IF(AK7>=$D7,"HöB",IF(AK7<=$F7,"MiB",IF(AK7<=$E7,"MeB","")))) ->  | AM7: =IF(AH7="",0,IF(AH7="Zugang",((AC7*AE7)+(AI7*AJ7))/(AC7+AJ7),AE7)) -> 0 | AN7: =IF(AH7="","",AK7*AM7) ->  | AS7: =IF(AP7="",0,IF(AP7="Zugang",AK7+AR7,AK7-AR7)) -> 0 | AT7: =IF(AP7="","",IF(AS7>=$D7,"HöB",IF(AS7<=$F7,"MiB",IF(AS7<=$E7,"MeB","")))) ->  | AU7: =IF(AP7="",0,IF(AP7="Zugang",((AK7*AM7)+(AQ7*AR7))/(AK7+AR7),AM7)) -> 0 | AV7: =IF(AP7="","",AS7*AU7) ->  | BA7: =IF(AX7="",0,IF(AX7="Zugang",AS7+AZ7,AS7-AZ7)) -> 0 | BB7: =IF(AX7="","",IF(BA7>=$D7,"HöB",IF(BA7<=$F7,"MiB",IF(BA7<=$E7,"MeB","")))) ->  | BC7: =IF(AX7="",0,IF(AX7="Zugang",((AS7*AU7)+(AY7*AZ7))/(AS7+AZ7),AU7)) -> 0 | BD7: =IF(AX7="","",BA7*BC7) ->  | BI7: =IF(BF7="",0,IF(BF7="Zugang",BA7+BH7,BA7-BH7)) -> 0 | BJ7: =IF(BF7="","",IF(BI7>=$D7,"HöB",IF(BI7<=$F7,"MiB",IF(BI7<=$E7,"MeB","")))) ->  | BK7: =IF(BF7="",0,IF(BF7="Zugang",((BA7*BC7)+(BG7*BH7))/(BA7+BH7),BC7)) -> 0 | BL7: =IF(BF7="","",BI7*BK7) ->  | BQ7: =IF(BN7="",0,IF(BN7="Zugang",BI7+BP7,BI7-BP7)) -> 0 | BR7: =IF(BN7="","",IF(BQ7>=$D7,"HöB",IF(BQ7<=$F7,"MiB",IF(BQ7<=$E7,"MeB","")))) ->  | BS7: =IF(BN7="",0,IF(BN7="Zugang",((BI7*BK7)+(BO7*BP7))/(BI7+BP7),BK7)) -> 0 | BT7: =IF(BN7="","",BQ7*BS7) -> 
A8: 202 | B8: Jeansknöpfe | C8: Dtzd. | D8: 1200 | E8: 300 | F8: 100 | G8: 600 | H8: 0.43 | I8: 2006-01-13 | J8: Abgang | L8: 250 | M8: =IF(J8="",0,IF(J8="Zugang",G8+L8,G8-L8)) -> 350 | N8: =IF(J8="","",IF(M8>=$D8,"HöB",IF(M8<=$F8,"MiB",IF(M8<=$E8,"MeB","")))) ->  | O8: =IF(J8="",0,IF(J8="Zugang",((H8*G8)+(K8*L8))/(G8+L8),H8)) -> 0.43 | P8: =IF(J8="","",M8*O8) -> 150.5 | U8: =IF(R8="",0,IF(R8="Zugang",M8+T8,M8-T8)) -> 0 | V8: =IF(R8="","",IF(U8>=$D8,"HöB",IF(U8<=$F8,"MiB",IF(U8<=$E8,"MeB","")))) ->  | W8: =IF(R8="",0,IF(R8="Zugang",((M8*O8)+(S8*T8))/(M8+T8),O8)) -> 0 | X8: =IF(R8="","",U8*W8) ->  | AC8: =IF(Z8="",0,IF(Z8="Zugang",U8+AB8,U8-AB8)) -> 0 | AD8: =IF(Z8="","",IF(AC8>=$D8,"HöB",IF(AC8<=$F8,"MiB",IF(AC8<=$E8,"MeB","")))) ->  | AE8: =IF(Z8="",0,IF(Z8="Zugang",((U8*W8)+(AA8*AB8))/(U8+AB8),W8)) -> 0 | AF8: =IF(Z8="","",AC8*AE8) ->  | AK8: =IF(AH8="",0,IF(AH8="Zugang",AC8+AJ8,AC8-AJ8)) -> 0 | AL8: =IF(AH8="","",IF(AK8>=$D8,"HöB",IF(AK8<=$F8,"MiB",IF(AK8<=$E8,"MeB","")))) ->  | AM8: =IF(AH8="",0,IF(AH8="Zugang",((AC8*AE8)+(AI8*AJ8))/(AC8+AJ8),AE8)) -> 0 | AN8: =IF(AH8="","",AK8*AM8) ->  | AS8: =IF(AP8="",0,IF(AP8="Zugang",AK8+AR8,AK8-AR8)) -> 0 | AT8: =IF(AP8="","",IF(AS8>=$D8,"HöB",IF(AS8<=$F8,"MiB",IF(AS8<=$E8,"MeB","")))) ->  | AU8: =IF(AP8="",0,IF(AP8="Zugang",((AK8*AM8)+(AQ8*AR8))/(AK8+AR8),AM8)) -> 0 | AV8: =IF(AP8="","",AS8*AU8) ->  | BA8: =IF(AX8="",0,IF(AX8="Zugang",AS8+AZ8,AS8-AZ8)) -> 0 | BB8: =IF(AX8="","",IF(BA8>=$D8,"HöB",IF(BA8<=$F8,"MiB",IF(BA8<=$E8,"MeB","")))) ->  | BC8: =IF(AX8="",0,IF(AX8="Zugang",((AS8*AU8)+(AY8*AZ8))/(AS8+AZ8),AU8)) -> 0 | BD8: =IF(AX8="","",BA8*BC8) ->  | BI8: =IF(BF8="",0,IF(BF8="Zugang",BA8+BH8,BA8-BH8)) -> 0 | BJ8: =IF(BF8="","",IF(BI8>=$D8,"HöB",IF(BI8<=$F8,"MiB",IF(BI8<=$E8,"MeB","")))) ->  | BK8: =IF(BF8="",0,IF(BF8="Zugang",((BA8*BC8)+(BG8*BH8))/(BA8+BH8),BC8)) -> 0 | BL8: =IF(BF8="","",BI8*BK8) ->  | BQ8: =IF(BN8="",0,IF(BN8="Zugang",BI8+BP8,BI8-BP8)) -> 0 | BR8: =IF(BN8="","",IF(BQ8>=$D8,"HöB",IF(BQ8<=$F8,"MiB",IF(BQ8<=$E8,"MeB","")))) ->  | BS8: =IF(BN8="",0,IF(BN8="Zugang",((BI8*BK8)+(BO8*BP8))/(BI8+BP8),BK8)) -> 0 | BT8: =IF(BN8="","",BQ8*BS8) -> 
A9: 203 | B9: Gürtel Country | C9: Stück | D9: 500 | E9: 100 | F9: 50 | G9: 200 | H9: 12.75 | I9: 2006-01-02 | J9: Zugang | K9: 12.75 | L9: 200 | M9: =IF(J9="",0,IF(J9="Zugang",G9+L9,G9-L9)) -> 400 | N9: =IF(J9="","",IF(M9>=$D9,"HöB",IF(M9<=$F9,"MiB",IF(M9<=$E9,"MeB","")))) ->  | O9: =IF(J9="",0,IF(J9="Zugang",((H9*G9)+(K9*L9))/(G9+L9),H9)) -> 12.75 | P9: =IF(J9="","",M9*O9) -> 5100 | Q9: 2006-03-13 | R9: Abgang | T9: 150 | U9: 250 | V9: =IF(R9="","",IF(U9>=$D9,"HöB",IF(U9<=$F9,"MiB",IF(U9<=$E9,"MeB","")))) ->  | W9: =IF(R9="",0,IF(R9="Zugang",((M9*O9)+(S9*T9))/(M9+T9),O9)) -> 12.75 | X9: =IF(R9="","",U9*W9) -> 3187.5 | AC9: 0 | AD9: =IF(Z9="","",IF(AC9>=$D9,"HöB",IF(AC9<=$F9,"MiB",IF(AC9<=$E9,"MeB","")))) ->  | AE9: =IF(Z9="",0,IF(Z9="Zugang",((U9*W9)+(AA9*AB9))/(U9+AB9),W9)) -> 0 | AF9: =IF(Z9="","",AC9*AE9) ->  | AK9: =IF(AH9="",0,IF(AH9="Zugang",AC9+AJ9,AC9-AJ9)) -> 0 | AL9: =IF(AH9="","",IF(AK9>=$D9,"HöB",IF(AK9<=$F9,"MiB",IF(AK9<=$E9,"MeB","")))) ->  | AM9: =IF(AH9="",0,IF(AH9="Zugang",((AC9*AE9)+(AI9*AJ9))/(AC9+AJ9),AE9)) -> 0 | AN9: =IF(AH9="","",AK9*AM9) ->  | AS9: =IF(AP9="",0,IF(AP9="Zugang",AK9+AR9,AK9-AR9)) -> 0 | AT9: =IF(AP9="","",IF(AS9>=$D9,"HöB",IF(AS9<=$F9,"MiB",IF(AS9<=$E9,"MeB","")))) ->  | AU9: =IF(AP9="",0,IF(AP9="Zugang",((AK9*AM9)+(AQ9*AR9))/(AK9+AR9),AM9)) -> 0 | AV9: =IF(AP9="","",AS9*AU9) ->  | BA9: =IF(AX9="",0,IF(AX9="Zugang",AS9+AZ9,AS9-AZ9)) -> 0 | BB9: =IF(AX9="","",IF(BA9>=$D9,"HöB",IF(BA9<=$F9,"MiB",IF(BA9<=$E9,"MeB","")))) ->  | BC9: =IF(AX9="",0,IF(AX9="Zugang",((AS9*AU9)+(AY9*AZ9))/(AS9+AZ9),AU9)) -> 0 | BD9: =IF(AX9="","",BA9*BC9) ->  | BI9: =IF(BF9="",0,IF(BF9="Zugang",BA9+BH9,BA9-BH9)) -> 0 | BJ9: =IF(BF9="","",IF(BI9>=$D9,"HöB",IF(BI9<=$F9,"MiB",IF(BI9<=$E9,"MeB","")))) ->  | BK9: =IF(BF9="",0,IF(BF9="Zugang",((BA9*BC9)+(BG9*BH9))/(BA9+BH9),BC9)) -> 0 | BL9: =IF(BF9="","",BI9*BK9) ->  | BQ9: =IF(BN9="",0,IF(BN9="Zugang",BI9+BP9,BI9-BP9)) -> 0 | BR9: =IF(BN9="","",IF(BQ9>=$D9,"HöB",IF(BQ9<=$F9,"MiB",IF(BQ9<=$E9,"MeB","")))) ->  | BS9: =IF(BN9="",0,IF(BN9="Zugang",((BI9*BK9)+(BO9*BP9))/(BI9+BP9),BK9)) -> 0 | BT9: =IF(BN9="","",BQ9*BS9) -> 
A10: 204 | B10: Gürtel City | C10: Stück | D10: 500 | E10: 100 | F10: 50 | G10: 100 | H10: 18.95 | I10: 2006-02-02 | J10: Zugang | K10: 19.15 | L10: 350 | M10: 450 | O10: 19.10555556 | P10: 8597.5 | Q10: 2006-02-14 | R10: Abgang | T10: 100 | U10: 350 | W10: 19.10555556 | X10: 6686.944444 | AC10: 0 | AE10: 0 | AK10: 0 | AM10: 0 | AS10: 0 | AU10: 0 | BA10: 0 | BC10: 0 | BI10: 0 | BK10: 0 | BQ10: 0 | BS10: 0
A11: 205 | B11: Logo Leder | C11: Stück | D11: 1000 | E11: 250 | F11: 100 | G11: 800 | H11: 1.05 | I11: 2006-03-13 | J11: Abgang | L11: 200 | M11: 600 | O11: 1.05 | P11: 630 | U11: 0 | W11: 0 | AC11: 0 | AE11: 0 | AK11: 0 | AM11: 0 | AS11: 0 | AU11: 0 | BA11: 0 | BC11: 0 | BI11: 0 | BK11: 0 | BQ11: 0 | BS11: 0
A12: 206 | B12: Logo-Aufnäher Jeans002 | C12: Stück | D12: 1000 | E12: 300 | F12: 100 | G12: 350 | H12: 1.25 | I12: 2006-02-14 | J12: Abgang | L12: 25 | M12: 325 | O12: 1.25 | P12: 406.25 | U12: 0 | W12: 0 | AC12: 0 | AE12: 0 | AK12: 0 | AM12: 0 | AS12: 0 | AU12: 0 | BA12: 0 | BC12: 0 | BI12: 0 | BK12: 0 | BQ12: 0 | BS12: 0
A13: 207 | B13: Reißverschlüsse (sort.) | C13: Dtzd. | D13: 1000 | E13: 400 | F13: 200 | G13: 350 | H13: 17.5 | I13: 2006-03-13 | J13: Zugang | K13: 18 | L13: 400 | M13: 750 | O13: 17.76666667 | P13: 13325 | Q13: 2006-04-16 | R13: Abgang | T13: 320 | U13: 430 | W13: 17.76666667 | X13: 7639.666667 | AC13: 0 | AE13: 0 | AK13: 0 | AM13: 0 | AS13: 0 | AU13: 0 | BA13: 0 | BC13: 0 | BI13: 0 | BK13: 0 | BQ13: 0 | BS13: 0
M14: 0 | O14: 0 | U14: =IF(R14="",0,IF(R14="Zugang",M14+T14,M14-T14)) -> 0 | W14: 0 | AC14: 0 | AE14: 0 | AK14: 0 | AM14: 0 | AS14: 0 | AU14: 0 | BA14: 0 | BC14: 0 | BI14: 0 | BK14: 0 | BQ14: 0 | BS14: 0
A15: 209 | M15: 0 | O15: 0 | U15: 0 | W15: 0 | AC15: 0 | AE15: 0 | AK15: 0 | AM15: 0 | AS15: 0 | AU15: 0 | BA15: 0 | BC15: 0 | BI15: 0 | BK15: 0 | BQ15: 0 | BS15: 0
A16: 210 | M16: 0 | O16: 0 | U16: 0 | W16: 0 | AC16: 0 | AE16: 0 | AK16: 0 | AM16: 0 | AS16: 0 | AU16: 0 | BA16: 0 | BC16: 0 | BI16: 0 | BK16: 0 | BQ16: 0 | BS16: 0

Sheet Lieferer
A1: Lieferantenverzeichnis Hilfsstoffe Jeans 002
A5: Lieferer-Nr.: | B5: Firma | C5: Straße/Postfach | D5: PLZ Ort | E5: Telefon | F5: Fax | G5: Email
A6: 20 | B6: ZIP GmbH Kurzwarengroßhandel | C6: Rheinstr. 1 | D6: 68294 Mannheim | E6: 0621/5544 | F6: 0621/5545 | G6: info@zip.de
A7: 21 | B7: Reinhard Müller OHG | C7: Nahestr. 25 | D7: 55743 Idar-Oberstein | E7: 06781/40400 | F7: 6781/404020 | G7: rm@tonline.de
A8: 22 | B8: Kirner Lederwaren GmbH | C8: Hellbergblick 1 | D8: 55666 Kirn | E8: 06752/3434 | F8: 06752/3435 | G8: info@kile.de
A9: 23
A10: 24
A11: 25

Sheet Korrespondenz
I2: Legen Sie die Art des Beleges fest
A3: Tropic GmbH, Rheingrafenstr. 20 55543 Bad Kreuznach | K3: 1
A6: =IF(C15="","",VLOOKUP($C$15,Lieferer!$A$6:$G$11,2)) ->  | E6: Rheingrafenstr. 20 | I6: Anfrage/Bestellung
A7: =IF(C15="","",VLOOKUP($C$15,Lieferer!$A$6:$G$11,3)) ->  | E7: 55543 Bad Kreuznach | I7: Neue Anfrage/Bestellung
E8: Tel.: 0671/2004-0 | I8: mit neuer Nummer
A9: =IF(C15="","",VLOOKUP($C$15,Lieferer!$A$6:$G$11,4)) ->  | E9: Fax: (49) 0671/2004-10 | I9: (Erhöhung um 1)
E10: info@tropic.de | I10: Anfrage/Bestellung
I11: korrigieren (Storno mit
I12: alter Nummer)
A13: =IF(K3=1,"Anfrage","Bestellung") -> Anfrage
A15: Lieferernummer:
A16: =IF(K3=1,"Nummer der Anfrage:","Bestellnummer:") -> Nummer der Anfrage: | C16: 0 | F16: Datum: | G16: =TODAY() -> 2017-10-09 | I16: Legen Sie die Art des Beleges durch Aktivierung der ent-sprechenden Option fest. Legen Sie die Belegnummer fest. Klicken Sie auf den Button 'Daten eingeben' und geben Sie die Auftragsdaten ein. Wenn Sie den Beleg drucken wollen, wählen Sie in Ihrem Druckmenu nur die Seite 1 aus.
A18: Unsere Zeichen: | C18: Ihre Nachricht vom: | E18: Ihre Zeichen: | G18: Durchwahl
G19: 0671/2004-33
A21: Sehr geehrte Damen und Herren,
A23: =IF(K3=1,"senden Sie uns bitte Ihre aktuellen Preise und Lieferungs- und Zahlungsbedingungen für die folgenden Artikel:","wir bestellen aus Ihrem Liefererprogramm die folgenden Artikel zu den bisherigen Zahlungs- und Lieferungsbedingungen:") -> senden Sie uns bitte Ihre aktuellen Preise und Lieferungs- und Zahlungsbedingungen für die folgenden Artikel:
A26: Artikel-Nr.: | B26: Artikel-Bezeichnung | D26: Mengen- einheit | E26: =IF(A13="Bestellung","Stückpreis", "") ->  | F26: Menge | G26: =IF(A13="Bestellung","Gesamtpreis","") -> 
B28: =IF($A28="","",VLOOKUP($A28,Artikel!$A$7:$H$16,2)) ->  | D28: =IF($A28="","",VLOOKUP($A28,Artikel!$A$7:$H$16,3)) ->  | E28: =IF($A$13="Bestellung",IF($A28="","",VLOOKUP($A28,Artikel!$A$7:$H$16,8)),"") ->  | G28: =IF($A$13="Bestellung",IF(A28="","",E28*F28),"") -> 
B29: =IF($A29="","",VLOOKUP($A29,Artikel!$A$7:$H$16,2)) ->  | D29: =IF($A29="","",VLOOKUP($A29,Artikel!$A$7:$H$16,3)) ->  | E29: =IF($A$13="Bestellung",IF($A29="","",VLOOKUP($A29,Artikel!$A$7:$H$16,8)),"") -> 
B30: =IF($A30="","",VLOOKUP($A30,Artikel!$A$7:$H$16,2)) ->  | D30: =IF($A30="","",VLOOKUP($A30,Artikel!$A$7:$H$16,3)) ->  | E30: =IF($A$13="Bestellung",IF($A30="","",VLOOKUP($A30,Artikel!$A$7:$H$16,8)),"") -> 
B31: =IF($A31="","",VLOOKUP($A31,Artikel!$A$7:$H$16,2)) ->  | D31: =IF($A31="","",VLOOKUP($A31,Artikel!$A$7:$H$16,3)) ->  | E31: =IF($A$13="Bestellung",IF($A31="","",VLOOKUP($A31,Artikel!$A$7:$H$16,8)),"") -> 
B32: =IF($A32="","",VLOOKUP($A32,Artikel!$A$7:$H$16,2)) ->  | D32: =IF($A32="","",VLOOKUP($A32,Artikel!$A$7:$H$16,3)) ->  | E32: =IF($A$13="Bestellung",IF($A32="","",VLOOKUP($A32,Artikel!$A$7:$H$16,8)),"") -> 
B33: =IF($A33="","",VLOOKUP($A33,Artikel!$A$7:$H$16,2)) ->  | D33: =IF($A33="","",VLOOKUP($A33,Artikel!$A$7:$H$16,3)) ->  | E33: =IF($A$13="Bestellung",IF($A33="","",VLOOKUP($A33,Artikel!$A$7:$H$16,8)),"") -> 
E34: =IF(A13="Bestellung","Gesamtbetrag, netto","") ->  | G34: =IF(A13="Bestellung",SUM(G28:G33),"") -> 
A35: Kurzmitteilung:
A42: Mit freundlichen Grüßen
A46: i.A.
A48: Bankverbindung: Kto-Nr.: 123 456 bei der Sparkasse Rhein-Nahe, BLZ 560 501 80
A49: Handelsregister Bad Kreuznach, Abt B. Nr.: HRB 2233
A50: Geschäftsführung: Sylvia Sommer, Rheingrafenstr. 20, 55543 Bad Kreuznach

Sheet A1
A1: Lagerbestandsverwaltung
A3: Arbeitsauftrag 1
B5: A. Erfassen Sie mit dem aktuellen Datum die folgenden Lagerbewegungen:
A7: Nr. | B7: Datum | C7: Artikel-Nr.: | D7: Vorgang | G7: Menge | H7: Preis
A8: 1. | B8: =TODAY() -> 2017-10-09 | C8: 202 | D8: Materialentnahmeschein für Jeansknöpfe | G8: 50
A9: 2. | B9: 2017-10-09 | C9: 203 | D9: Abgabe von Gürteln (Country) in das Verkaufslager | G9: 25
A10: 3. | B10: 2017-10-09 | C10: 206 | D10: Wareneingang für den Aufnäher der Jeans 002 | G10: 120 | H10: 1.28
A11: 4. | B11: 2017-10-09 | C11: 207 | D11: Materialentnahmeschein für Reißverschlüsse | G11: 30
A12: 5. | B12: 2017-10-09 | C12: 204 | D12: Wareneingang beim Gürtel City | G12: 150 | H12: 20.2
A13: 6. | B13: 2017-10-09 | C13: 201 | D13: Materialentnahmeschein für Jeansnieten | G13: 400
B15: B. Nehmen Sie einen neuen Hilfstoff in die Lagerkartei auf.
J16: Wählen Sie zum Druck des
D17: Artikel-Nr.: | E17: 208 | F17: Lieferer-Nr.: 23 | J17: Arbeitsauftrages nur die
A18: 7. | D18: Bezeichnung: | F18: Logo 10 Jahre Jeans 002 | J18: Seite 1 aus.
D19: Höchstbestand: | E19: 500 | F19: Mengeneinheit: Stück
D20: Meldebestand: | E20: 150 | F20: Angebotspreis: 0,76 €
D21: Mindestbestand: | E21: 50 | F21: Anfangsbestand: 0
B23: C. Nehmen Sie einen neuen Lieferer für den Artikel 208 in die Lieferantenkartei auf.
A25: 8. | D25: Lieferer-Nr.: | E25: 23
D26: Firma: | E26: Logo International GmbH
D27: Straße: | E27: Hessenstein 6
D28: PLZ/Ort: | E28: 58461 Witten
D29: Telefon: | E29: 02324/545454
D30: Fax: | E30: 02324/545455
D31: Email: | E31: info@interlogo.de
B33: D. Erfassen Sie mit dem aktuellen Datum die folgenden Lagerbewegungen:
A35: Nr. | B35: Datum | C35: Artikel-Nr.: | D35: Vorgang | G35: Menge | H35: Preis
A36: 9. | B36: =TODAY() -> 2017-10-09 | C36: 208 | D36: Wareneingang | G36: 450 | H36: 0.76
A37: 10. | B37: =TODAY() -> 2017-10-09 | C37: 208 | D37: Materialentnahmeschein für den neuen Aufnäher | G37: 200
B39: E. Schreiben Sie mit heutigem Datum die folgende Bestellung:
A41: 11. | D41: Lieferer: | E41: ZIP GmbH Kurzwarengroßhandel
D42: Unsere Zeichen: | E42: Ihr Namenszeichen
D43: Ihre Nachricht vom: | E43: 2 Wochen vor dem heutigen Datum
D45: Artikel-Nr.: | E45: 202
D46: Menge: | E46: 800 Dtzd.
D48: Artikel-Nr.: | E48: 207
D49: Menge: | E49: 600 Dtzd.
D51: Kurzmitteilung: | E51: Bitte liefern Sie zur Vermeidung von
E52: Produktionsstillständen unverzüglich!

Sheet A2
A1: Lagerbestandsverwaltung
A3: Arbeitsauftrag 2
B5: Erfassen Sie mit dem aktuellen Datum die folgenden Materialentnahmen:
A7: 1. | B7: Materialentnahmeschein | F7: Hilfsstofflager | G7: Nr.: | H7: 101
B8: Artikel-Nr.: | C8: Bezeichnung | E8: Menge | F8: Kostenstelle | G8: Buchungsvermerk
B9: 201 | C9: Jeansnieten | E9: 150 | F9: Näherei
B11: Ausstellung | E11: Empfang
B12: Datum | C12: Sachbearbeiter | E12: Datum | F12: Sachbearbeiter
B13: =TODAY() -> 2017-10-09 | C13: Senel
A16: 2. | B16: Materialentnahmeschein | F16: Hilfsstofflager | G16: Nr.: | H16: 102 | J16: Wählen Sie zum Druck des
B17: Artikel-Nr.: | C17: Bezeichnung | E17: Menge | F17: Kostenstelle | G17: Buchungsvermerk | J17: Arbeitsauftrages nur die
B18: 206 | C18: Logo-Aufnäher Jeans 002 | E18: 5 | F18: Verkauf | J18: Seite 1 aus.
B20: Ausstellung | E20: Empfang
B21: Datum | C21: Sachbearbeiter | E21: Datum | F21: Sachbearbeiter
B22: =TODAY() -> 2017-10-09 | C22: Senel
A25: 3. | B25: Materialentnahmeschein | F25: Hilfsstofflager | G25: Nr.: | H25: 103
B26: Artikel-Nr.: | C26: Bezeichnung | E26: Menge | F26: Kostenstelle | G26: Buchungsvermerk
B27: 205 | C27: Logo Leder | E27: 200 | F27: Produktion
B29: Ausstellung | E29: Empfang
B30: Datum | C30: Sachbearbeiter | E30: Datum | F30: Sachbearbeiter
B31: =TODAY() -> 2017-10-09 | C31: Holzer
A34: 4. | B34: Materialentnahmeschein | F34: Hilfsstofflager | G34: Nr.: | H34: 104
B35: Artikel-Nr.: | C35: Bezeichnung | E35: Menge | F35: Kostenstelle | G35: Buchungsvermerk
B36: 204 | C36: Gürtel City | E36: 15 | F36: Ladenverkauf
B38: Ausstellung | E38: Empfang
B39: Datum | C39: Sachbearbeiter | E39: Datum | F39: Sachbearbeiter
B40: =TODAY() -> 2017-10-09 | C40: Holzer
A43: 5. | B43: Materialentnahmeschein | F43: Hilfsstofflager | G43: Nr.: | H43: 105
B44: Artikel-Nr.: | C44: Bezeichnung | E44: Menge | F44: Kostenstelle | G44: Buchungsvermerk
B45: 203 | C45: Cürtel Country | E45: 10 | F45: Ladenverkauf
B47: Ausstellung | E47: Empfang
B48: Datum | C48: Sachbearbeiter | E48: Datum | F48: Sachbearbeiter
B49: =TODAY() -> 2017-10-09 | C49: Holzer

Sheet A3
A1: Lagerbestandsverwaltung
A3: Arbeitsauftrag 3
B5: Erfassen Sie mit dem aktuellen Datum die folgenden Belege:
A7: 1. | B7: Materialentnahmeschein | F7: Hilfsstofflager | G7: Nr.: | H7: 106
B8: Artikel-Nr.: | C8: Bezeichnung | E8: Menge | F8: Kostenstelle | G8: Buchungsvermerk
B9: 201 | C9: Jeansnieten | E9: 150 | F9: Näherei
B11: Ausstellung | E11: Empfang
B12: Datum | C12: Sachbearbeiter | E12: Datum | F12: Sachbearbeiter
B13: =TODAY() -> 2017-10-09 | C13: Senel
A16: 2. | B16: Reinhard Müller OHG, Nahestr. 25, 55743 Idar Oberstein | G16: =TODAY() -> 2017-10-09 | J16: Wählen Sie zum Druck des
B17: Lieferschein | J17: Arbeitsauftrages nur die
B18: Artikel-Nr.: | C18: Bezeichnung | F18: Mengeneinheit | G18: Menge | H18: Preis | J18: Seite 1 aus.
B19: 17N89 | C19: Logo-Aufnäher Jeans 002 | F19: Stück | G19: 500 | H19: 1.2
B21: 85M89 | C21: Logo Leder | F21: Stück | G21: 200 | H21: 0.05
A24: 3. | B24: ZIP GmbH Kurzwarengroßhandel | G24: =TODAY() -> 2017-10-09
B25: Lieferschein
B26: Artikel-Nr.: | C26: Bezeichnung | F26: Mengeneinheit | G26: Menge | H26: Preis
B27: 300T85 | C27: Jeansknöpfe | F27: Dtzd. | G27: 500 | H27: 0.39
B29: 85M89 | C29: Reißverschlüsse (sortiert) | F29: Dtzd. | G29: 250 | H29: 16.95
A32: 4. | B32: Materialentnahmeschein | F32: Hilfsstofflager | G32: Nr.: | H32: 107
B33: Artikel-Nr.: | C33: Bezeichnung | E33: Menge | F33: Kostenstelle | G33: Buchungsvermerk
B34: 202 | C34: Jeansknöpfe | E34: 450 | F34: Produktion
B36: Ausstellung | E36: Empfang
B37: Datum | C37: Sachbearbeiter | E37: Datum | F37: Sachbearbeiter
B38: =TODAY() -> 2017-10-09 | C38: Holzer
A41: 5. | B41: Kirner Lederwaren GmbH | G41: =TODAY() -> 2017-10-09
B42: Lieferschein
B43: Artikel-Nr.: | C43: Bezeichnung | F43: Mengeneinheit | G43: Menge | H43: Preis
B44: 17N89 | C44: Gürtel Country | F44: Stück | G44: 150 | H44: 13.05
B46: 85M89 | C46: Gürtel City | F46: Stück | G46: 50 | H46: 19.45
A49: 6. | B49: ZIP GmbH Kurzwarengroßhandel | G49: =TODAY() -> 2017-10-09
B50: Lieferschein
B51: Artikel-Nr.: | C51: Bezeichnung | F51: Mengeneinheit | G51: Menge | H51: Preis
B52: 300T85 | C52: Jeansknöpfe | F52: Dtzd. | G52: 400 | H52: 0.39

Sheet A4
A1: Lagerbestandsverwaltung
A3: Arbeitsauftrag 4
B5: A. Erfassen Sie mit dem aktuellen Datum den folgenden Beleg:
A7: 1. | B7: Materialentnahmeschein | F7: Hilfsstofflager | G7: Nr.: | H7: 106
B8: Artikel-Nr.: | C8: Bezeichnung | E8: Menge | F8: Kostenstelle | G8: Buchungsvermerk
B9: 201 | C9: Jeansnieten | E9: 450 | F9: Näherei
B11: Ausstellung | E11: Empfang
B12: Datum | C12: Sachbearbeiter | E12: Datum | F12: Sachbearbeiter
B13: =TODAY() -> 2017-10-09 | C13: Senel
B16: B.Nehmen Sie neue Berechnungen vor, und ändern Sie die Lagerkartei. | J16: Wählen Sie zum Druck des
J17: Arbeitsauftrages nur die
A18: 2. | B18: Der Lieferer für Nieten der Jeans 002 teilt mit, dass sich die Lieferzeit auf 6 Tage verlängert. Der durchschnittliche Tagesverbrauch beträgt 50 Dtzd. Der Mindestbestand beträgt weiterhin 200 Dtzd.. | J18: Seite 1 aus.
A20: 3. | B20: Der Höchstbestand für Jeansdruckknöpfe soll an die derzeitigen Produktionsbedingungen angepasst werden. Bei einem Tagesverbrauch von 10 Dtzd. soll der kontinuierliche Produktionsfluss 20 Tage lang gesichert werden. Zusätzlich ist der Mindestbestand von 100 Dtzd. einzurechnen.
A23: 4. | B23: Die Kirner Lederwaren GmbH teilt mit, dass sich die Lieferzeit für den Gürtel City auf 3 Tage verlängert.
B24: Der Tagesverbrauch beträgt 40 Stück. Der Mindestvorrat soll für 2 Tage ausreichen. Der Höchstbestand
B25: soll so bemessen werden, dass der Vorrat für 12 Tage den Produktionsfluss sichert. Zusätzlich soll noch
B26: der Mindestbestand eingerechnet werden.
A28: 5. | B28: ZIP GmbH Kurzwarengroßhandel | G28: =TODAY() -> 2017-10-09
B29: Lieferschein
B30: Artikel-Nr.: | C30: Bezeichnung | F30: Mengeneinheit | G30: Menge | H30: Preis
B31: 300T85 | C31: Jeansknöpfe | F31: Dtzd. | G31: 500 | H31: 0.39
B33: 85M89 | C33: Reißverschlüsse (sortiert) | F33: Dtzd. | G33: 250 | H33: 16.95
A36: 6. | B36: Materialentnahmeschein | F36: Hilfsstofflager | G36: Nr.: | H36: 107
B37: Artikel-Nr.: | C37: Bezeichnung | E37: Menge | F37: Kostenstelle | G37: Buchungsvermerk
B38: 202 | C38: Jeansknöpfe | E38: 450 | F38: Produktion
B40: Ausstellung | E40: Empfang
B41: Datum | C41: Sachbearbeiter | E41: Datum | F41: Sachbearbeiter
B42: =TODAY() -> 2017-10-09 | C42: Holzer
A45: 7. | B45: Kirner Lederwaren GmbH | G45: =TODAY() -> 2017-10-09
B46: Lieferschein
B47: Artikel-Nr.: | C47: Bezeichnung | F47: Mengeneinheit | G47: Menge | H47: Preis
B48: 17N89 | C48: Gürtel Country | F48: Stück | G48: 150 | H48: 13.05
B50: 85M89 | C50: Gürtel City | F50: Stück | G50: 50 | H50: 19.45
A53: 8. | B53: ZIP GmbH Kurzwarengroßhandel | G53: =TODAY() -> 2017-10-09
B54: Lieferschein
B55: Artikel-Nr.: | C55: Bezeichnung | F55: Mengeneinheit | G55: Menge | H55: Preis
B56: 300T85 | C56: Jeansknöpfe | F56: Dtzd. | G56: 400 | H56: 0.39

Sheet A5
A1: Lagerbestandsverwaltung
A3: Arbeitsauftrag 5
B5: Für den folgenden Vorgang sind alle erforderlichen Eintragungen in der
B6: Lagerkartei vorzunehmen.
B8: Die Tropic GmbH produziert für das Jubiläum der Fa. Route 66 eine Jeans auf die das Logo des Kunden.
B9: aufgenäht werden soll. Dazu wird eine Produktdifferenzierung der Jeans 002 vorgenommen.
B11: Der Aufnäher wird von der Firma Exclusiv Logo GmbH, Weserstr. 24, in 28278 Bremen geliefert.
A13: 1. | B13: Nehmen Sie den neuen Lieferer in die Lieferantenkartei auf. (Tel.:01805/56651, Fax: 01805/56652)
A15: 2. | B15: Nehmen Sie den neuen Logo-Aufnäher Route 66 als Hilfsstoff mit der Nummer 209 in die Artikeldatei auf.
B16: Die Mengeneinheit für die Lieferung beträgt Stück, der Anfangsbestand liegt zunächst bei 0 Stück. | J16: Wählen Sie zum Druck des
B17: Der Höchstbestand wird auf 150 festgelegt. Für mögliche Folgeaufträge wird der Meldebestand | J17: Arbeitsauftrages nur die
B18: auf 50 und der Mindestbestand auf 20 Stück festgesetzt. Laut Angebot beträgt der Stückpreis 2,40 €. | J18: Seite 1 aus.
A20: 3. | B20: Bestellen Sie 150 Stück des neuen Logos bei der Exclusiv Logo GmbH mit dem heutigen Datum.
A22: 4. | B22: Erfassen Sie den Wareneingang laut folgendem Lieferschein.
B23: Exclusiv Logo GmbH | G23: =TODAY()+4 -> 2017-10-13
B24: Lieferschein
B25: Artikel-Nr.: | C25: Bezeichnung | F25: Mengeneinheit | G25: Menge | H25: Preis
B26: 325So | C26: Aufnäher Logo Route 66 | F26: Stück | G26: 150 | H26: 2.4
B29: Erfassen Sie die folgenden Materialentnahmen mit dem jeweils angegebenen Datum.
A31: 5. | B31: Materialentnahmeschein | F31: Hilfsstofflager | G31: Nr.: | H31: 201
B32: Artikel-Nr.: | C32: Bezeichnung | E32: Menge | F32: Kostenstelle | G32: Buchungsvermerk
B33: 209 | C33: Aufnäher Logo Route 66 | E33: 75 | F33: Produktion
B35: Ausstellung | E35: Empfang
B36: Datum | C36: Sachbearbeiter | E36: Datum | F36: Sachbearbeiter
B37: =TODAY()+10 -> 2017-10-19 | C37: Holzer
A40: 6. | B40: Materialentnahmeschein | F40: Hilfsstofflager | G40: Nr.: | H40: 202
B41: Artikel-Nr.: | C41: Bezeichnung | E41: Menge | F41: Kostenstelle | G41: Buchungsvermerk
B42: 209 | C42: Aufnäher Logo Route 66 | E42: 25 | F42: Produktion
B44: Ausstellung | E44: Empfang
B45: Datum | C45: Sachbearbeiter | E45: Datum | F45: Sachbearbeiter
B46: =TODAY()+15 -> 2017-10-24 | C46: Holzer
A49: 7. | B49: Bestellen Sie für einen Folgeauftrag weitere 100 Stück des neuen Logos Bestelldatum: | G49: =TODAY()+20 -> 2017-10-29
B50: Erfassen Sie den Wareneingang, wenn die Lieferung 4 Tage nach dem Bestelldatum eintrifft.
B51: Erfassen Sie jeweils drei weitere Materialentnahmen von je 50 Stück im Abstand von 5 Tagen.
B52: Die erste Entnahme erfolgt 2 Tage nach Eintreffen der letzten Lieferung.

Sheet A6
A1: Lagerbestandsverwaltung
A3: Arbeitsauftrag 6
B5: Für den folgenden Vorgang sind alle erforderlichen Eintragungen in der
B6: Lagerkartei vorzunehmen.
A8: 1. | B8: Die Tropic GmbH will für die Jeans 002 in Zukunft einen neuen Gürtel anbieten. Dazu wird
B9: zunächst der Bestand des Gürtels mit der Nr. 204 (Gity) bis auf den Mindestbestand an die
B10: verschiedenen Verkaufsstellen ausgeliefert.
B11: Die entsprechende Lagerbewegung ist zu erfassen.
A13: 2. | B13: Für den neuen Gürtel wird ein neuer Lieferer gefunden, der in das Lieferantenverzeichnis
B14: aufzunehmen ist.
B15: Offenbacher Lederwaren GmbH, Kaiserstr. 18-24, 63085 Offenbach, Tel.: 069-29290,
B16: Fax: 069-292920 | J16: Wählen Sie zum Druck des
J17: Arbeitsauftrages nur die
A18: 3. | B18: An den neuen Lieferanten ist eine Anfrage zu schreiben. Es sollen 600 Stück des | J18: Seite 1 aus.
B19: neuen Gürtels "Palermo" bezogen werden. Artikel-Nr. beim Lieferanten: P007.
B20: Als Kurzmitteilung fragen Sie nach der Lieferzeit.
A22: 4. | B22: Der neue Gürtel "Palermo" ist mit der Nr. 210 in der Lagerdatei zu erfassen und die kritischen Bestände
B23: sind anzupassen. Der Stückpreis beträgt 16,50 €. Der Anfangsbestand liegt bei 0 Einheiten.
B24: Der Höchstbestand beträgt 600 Stück. Der Mindestbestand soll bei einem durchschnittlichen
B25: Tagesverbrauch von 10 Stück für 3 Tage ausreichen. Die Lieferzeit beträgt 3 Tage. Der
B26: Meldebestand ist zu berechnen und in die Lagerkartei einzutragen.
A28: 5. | B28: Von dem neuen Gürtel werden 600 Stück bestellt.
A30: 6. | B30: Erfassen Sie die folgende Lieferung des neuen Gürtels.
B31: Offenbacher Lederwaren GmbH | G31: =TODAY() -> 2017-10-09
B32: Lieferschein
B33: Artikel-Nr.: | C33: Bezeichnung | F33: Mengeneinheit | G33: Menge | H33: Preis
B34: P007 | C34: Gürtel Palermo | F34: Stück | G34: 600 | H34: 16.5
A37: 7. | B37: Für einen Auftrag über 50 Stück der Jeans 002 sind alle erforderlichen Hilfsstoffe an die
B38: Produktionsabteilung zu liefern. Die Jeans sollen mit dem neuen Gürtel "Palermo" ausgeliefert werden.
B39: Erfassen Sie alle erforderlichen Hilfstoffabgänge in der richtigen Anzahl.
A41: 8. | B41: Erfassen Sie den folgenden Magterialentnahmeschein mit dem heutigen Datum.
B42: Materialentnahmeschein | F42: Hilfsstofflager | G42: Nr.: | H42: 403
B43: Artikel-Nr.: | C43: Bezeichnung | E43: Menge | F43: Kostenstelle | G43: Buchungsvermerk
B44: 210 | C44: Gürtel Palermo | E44: 75 | F44: Ladenverkauf
B46: Ausstellung | E46: Empfang
B47: Datum | C47: Sachbearbeiter | E47: Datum | F47: Sachbearbeiter
B48: =TODAY() -> 2017-10-09 | C48: Holzer
A51: 9. | B51: Erfassen Sie weitere Lagerbewegungen nach freier Wahl. Achten Sie auf die Anzeige von
B52: kritischen Mengen im Bestandsverzeichnis und veranlassen Sie die erforderlichen Maßnahmen.
